fUST/lending_fUST_20250930
["ID","MTS","AMOUNT","RATE_DAILY","PERIOD"]
[388486872,1759204159154,-10000.01,0.00020345,2]
[388486873,1759204159259,-10000.01,0.00020345,2]
[388486874,1759204159411,-10000.01,0.00020345,2]
[388486875,1759204159521,-10000.01,0.00020345,2]
[388486876,1759204159628,-10000.01,0.00020345,2]
[388486877,1759204159762,-10000.01,0.00020345,2]
[388486878,1759204174187,-495.96,0.00020335,3]
[388486879,1759204174234,-9008.09,0.00020345,2]
[388486880,1759204174299,-10000.01,0.00020345,2]
[388486881,1759204174422,-10000.01,0.00020345,2]
[388486882,1759204174537,-10000.01,0.00020345,2]
[388486883,1759204192359,-796.49898189,0.00020193,2]
[388486884,1759204192394,-8407.01203622,0.00020345,2]
[388486885,1759204192605,-10000.01,0.00020345,2]
[388486886,1759204192765,-10000.01,0.00020345,2]
[388486887,1759204192883,-10000.01,0.00020345,2]
[388486888,1759204193018,-10000.01,0.00020345,2]
[388486889,1759204193135,-10000.01,0.00020345,2]
[388486890,1759204196402,-10000.01,0.00020345,2]
[388486891,1759204196535,-10000.01,0.00020345,2]
[388486892,1759204196650,-10000.01,0.00020345,2]
[388486893,1759204200354,-10000.01,0.00020345,2]
[388486894,1759204200380,-10000.01,0.00020345,2]
[388486895,1759204200505,-10000.01,0.00020345,2]
[388486896,1759204200627,-10000.01,0.00020345,2]
[388486897,1759204200751,-10000.01,0.00020345,2]
[388486898,1759204200895,-2389.9373222,0.00020345,2]
[388486899,1759204220617,168.0,0.00020265,2]
[388486900,1759204227038,500.0,0.00020344,2]
[388486901,1759204227067,500.0,0.00020344,2]
[388486902,1759204227100,500.0,0.00020344,2]
[388486903,1759204227126,500.0,0.00020344,2]
[388486904,1759204227152,500.0,0.00020344,2]
[388486905,1759204227183,500.0,0.00020344,2]
[388486906,1759204227216,500.0,0.00020344,2]
[388486907,1759204227243,500.0,0.00020344,2]
[388486908,1759204227270,500.0,0.00020344,2]
[388486909,1759204227296,370.31111499,0.00020344,2]
[388486910,1759204227328,181.82424061,0.00020344,2]
[388486911,1759204227351,327.58945327,0.00020344,2]
[388486912,1759204227379,500.0,0.00020344,2]
[388486913,1759204227405,500.0,0.00020344,2]
[388486914,1759204227431,500.0,0.00020344,2]
[388486915,1759204227458,500.0,0.00020344,2]
[388486916,1759204227484,500.0,0.00020344,2]
[388486917,1759204227510,360.54025882,0.00020344,2]
[388486918,1759204227534,500.0,0.00020344,2]
[388486919,1759204227559,500.0,0.00020344,2]
[388486920,1759204227584,500.0,0.00020344,2]
[388486921,1759204227613,500.0,0.00020344,2]
[388486922,1759204227641,500.0,0.00020344,2]
[388486923,1759204227665,500.0,0.00020344,2]
[388486924,1759204227690,500.0,0.00020344,2]
[388486925,1759204227719,500.0,0.00020344,2]
[388486926,1759204227744,500.0,0.00020344,2]
[388486927,1759204227770,500.0,0.00020344,2]
[388486928,1759204227794,347.68431608,0.00020344,2]
[388486929,1759204227819,500.0,0.00020344,2]
[388486930,1759204227843,500.0,0.00020344,2]
[388486931,1759204227871,464.19597183,0.00020344,2]
[388486932,1759204227891,35.80402817,0.00020344,2]
[388486933,1759204228077,618.43949737,0.00020344,2]
[388486934,1759204228106,500.0,0.00020344,2]
[388486935,1759204228133,500.0,0.00020344,2]
[388486936,1759204228159,500.0,0.00020344,2]
[388486937,1759204228187,500.0,0.00020344,2]
[388486938,1759204228222,607.82274011,0.00020344,2]
[388486939,1759204228248,500.0,0.00020344,2]
[388486940,1759204228274,500.0,0.00020344,2]
[388486941,1759204228306,500.0,0.00020344,2]
[388486942,1759204228332,515.23290758,0.00020344,2]
[388486943,1759204228360,500.0,0.00020344,2]
[388486944,1759204228389,500.0,0.00020344,2]
[388486945,1759204228416,192.00038632,0.00020344,2]
[388486946,1759204228443,500.0,0.00020344,2]
[388486947,1759204228469,500.0,0.00020344,2]
[388486948,1759204228505,500.0,0.00020344,2]
[388486949,1759204228531,500.0,0.00020344,2]
[388486991,1759204231821,-300.0,0.00020399,2]
[388486992,1759204231831,-300.0,0.00020399,2]
[388486993,1759204231840,-300.0,0.00020399,2]
[388486995,1759204231849,-300.0,0.00020399,2]
[388486997,1759204231858,-300.0,0.00020399,2]
[388487000,1759204231867,-1200.0,0.00020399,2]
[388487003,1759204231876,-10161.50981456,0.000204,2]
[388487175,1759204245912,1530.71044045,0.00020345,2]
[388487176,1759204245933,1175.277753,0.00020345,2]
[388487177,1759204246024,-800.0,0.0002036,2]
[388487178,1759204246034,-7371.34018544,0.000204,2]
[388487179,1759204246043,-2000.0,0.00020445,2]
[388487180,1759204246052,-172.815,0.00020445,2]
[388487181,1759204246061,-500.0,0.000205,2]
[388487182,1759204246070,-598.0,0.0002064,2]
[388487183,1759204246082,-170.54056781,0.00020644,2]
[388487184,1759204246091,-681.48010898,0.00020644,2]
[388487185,1759204246100,-334.13458748,0.00020645,2]
[388487186,1759204246109,-503.31,0.00020686,3]
[388487187,1759204246118,-50000.0,0.00020696,2]
[388487188,1759204246127,-168.0,0.00020696,2]
[388487189,1759204246137,-172.0,0.00020699,2]
[388487190,1759204246146,-310.0,0.000207,2]
[388487191,1759204246155,-598.0,0.00020719,2]
[388487192,1759204246164,-5000.0,0.00020729,2]
[388487193,1759204246182,-168.0,0.0002073,2]
[388487194,1759204246193,-301.557,0.00020744,2]
[388487195,1759204246203,-168.0,0.00020755,2]
[388487196,1759204246212,-160.0,0.00020772,4]
[388487197,1759204246221,-598.0,0.00020798,2]
[388487198,1759204246232,-541.04553184,0.00020807,2]
[388487199,1759204246242,-385.82,0.00020828,2]
[388487200,1759204246251,-168.0,0.00020868,2]
[388487201,1759204246261,-598.0,0.0002087,2]
[388487202,1759204246270,-158.04,0.00020891,2]
[388487203,1759204246281,-151.0,0.000209,4]
[388487204,1759204246290,-312.7848382,0.000209,2]
[388487205,1759204246300,-297.0711174,0.000209,2]
[388487206,1759204246309,-192.900455,0.000209,2]
[388487207,1759204246318,-1003.253412,0.000209,2]
[388487208,1759204246328,-327.69,0.00020908,10]
[388487209,1759204246338,-166.0,0.00020911,2]
[388487210,1759204246348,-338.61,0.00020918,10]
[388487211,1759204246358,-16359.96537018,0.00020918,2]
[388487212,1759204246368,-500.0,0.00020928,2]
[388487213,1759204246379,-500.0,0.00020928,2]
[388487214,1759204246388,-151.0,0.00020928,2]
[388487215,1759204246398,-500.0,0.00020928,2]
[388487216,1759204246407,-151.0,0.00020928,2]
[388487217,1759204246417,-151.0,0.00020928,2]
[388487218,1759204246426,-151.73328894,0.00020928,2]
[388487219,1759204246435,-151.0,0.00020928,2]
[388487220,1759204246445,-151.64028086,0.00020928,2]
[388487221,1759204246454,-151.0,0.00020928,2]
[388487222,1759204246463,-152.13909428,0.00020928,2]
[388487223,1759204246473,-500.0,0.00020928,2]
[388487224,1759204246482,-1589.0,0.00020928,2]
[388487225,1759204246491,-180.90825869,0.00020928,2]
[388487226,1759204246500,-479.72918498,0.00020928,2]
[388487227,1759204260965,466.69823532,0.00020344,2]
[388487228,1759204260993,500.0,0.00020344,2]
[388487229,1759204261024,500.0,0.00020344,2]
[388487230,1759204261050,553.1263779,0.00020344,2]
[388487231,1759204261076,500.0,0.00020344,2]
[388487232,1759204261104,500.0,0.00020344,2]
[388487233,1759204261293,500.0,0.00020344,2]
[388487234,1759204261328,500.0,0.00020344,2]
[388487235,1759204261359,500.0,0.00020344,2]
[388487236,1759204261386,500.0,0.00020344,2]
[388487237,1759204261479,500.0,0.00020344,2]
[388487238,1759204261506,500.0,0.00020344,2]
[388487239,1759204261534,500.0,0.00020344,2]
[388487240,1759204261649,500.0,0.00020344,2]
[388487241,1759204261675,500.0,0.00020344,2]
[388487242,1759204261699,500.0,0.00020344,2]
[388487243,1759204261852,500.0,0.00020344,2]
[388487244,1759204261880,304.90763378,0.00020344,2]
[388487245,1759204261902,195.09236622,0.00020344,2]
[388487246,1759204262412,500.0,0.00020344,2]
[388487247,1759204262445,500.0,0.00020344,2]
[388487248,1759204262583,500.0,0.00020344,2]
[388487249,1759204262611,500.0,0.00020344,2]
[388487250,1759204267626,500.0,0.00020344,2]
[388487251,1759204267652,500.0,0.00020344,2]
[388487252,1759204267882,500.0,0.00020344,2]
[388487253,1759204267918,500.0,0.00020344,2]
[388487254,1759204267980,500.0,0.00020344,2]
[388487255,1759204268032,500.0,0.00020344,2]
[388487256,1759204268073,500.0,0.00020344,2]
[388487257,1759204268107,500.0,0.00020344,2]
[388487258,1759204268137,500.0,0.00020344,2]
[388487259,1759204268172,500.0,0.00020344,2]
[388487260,1759204268209,500.0,0.00020344,2]
[388487261,1759204268243,500.0,0.00020344,2]
[388487262,1759204268855,500.0,0.00020344,2]
[388487263,1759204270522,500.0,0.00020344,2]
[388487264,1759204270548,500.0,0.00020344,2]
[388487265,1759204270574,304.91763378,0.00020344,2]
[388487266,1759204270596,195.08236622,0.00020344,2]
[388487267,1759204272215,542.00038632,0.00020344,2]
[388487268,1759204272249,500.0,0.00020344,2]
[388487269,1759204272280,500.0,0.00020344,2]
[388487270,1759204272314,500.0,0.00020344,2]
[388487271,1759204272351,380.67769807,0.00020344,2]
[388487272,1759204272376,500.0,0.00020344,2]
[388487273,1759204272545,500.0,0.00020344,2]
[388487274,1759204272572,500.0,0.00020344,2]
[388487275,1759204272598,500.0,0.00020344,2]
[388487276,1759204272625,500.0,0.00020344,2]
[388487277,1759204272650,495.64061337,0.00020344,2]
[388487278,1759204272678,500.0,0.00020344,2]
[388487279,1759204272704,500.0,0.00020344,2]
[388487280,1759204275347,500.0,0.00020344,2]
[388487281,1759204277396,500.0,0.00020344,2]
[388487282,1759204277429,500.0,0.00020344,2]
[388487283,1759204277458,500.0,0.00020344,2]
[388487284,1759204277515,500.0,0.00020344,2]
[388487285,1759204277576,500.0,0.00020344,2]
[388487286,1759204277604,386.60893602,0.00020344,2]
[388487287,1759204277626,113.39106398,0.00020344,2]
[388487288,1759204277655,500.0,0.00020344,2]
[388487289,1759204277682,500.0,0.00020344,2]
[388487290,1759204277826,500.0,0.00020344,2]
[388487291,1759204277876,500.0,0.00020344,2]
[388487292,1759204277904,500.0,0.00020344,2]
[388487293,1759204277948,500.0,0.00020344,2]
[388487294,1759204278004,500.0,0.00020344,2]
[388487295,1759204278067,500.0,0.00020344,2]
[388487296,1759204278129,500.0,0.00020344,2]
[388487297,1759204278170,500.0,0.00020344,2]
[388487298,1759204278226,500.0,0.00020344,2]
[388487299,1759204278670,399.03218809,0.00020344,2]
[388487300,1759204292195,426.68894453,0.00020345,2]
[388487301,1759204293376,3560.8978034,0.00020245,2]
[388487302,1759204293397,10000.01,0.00020245,2]
[388487303,1759204293419,10000.01,0.00020245,2]
[388487304,1759204293442,10000.01,0.00020245,2]
[388487305,1759204293465,10000.01,0.00020245,2]
[388487306,1759204293487,10000.01,0.00020245,2]
[388487307,1759204293508,10000.01,0.00020245,2]
[388487308,1759204293529,10000.01,0.00020245,2]
[388487309,1759204354277,-304.69535865,0.00019842,2]
[388487310,1759204354304,-758.56,0.00020042,2]
[388487311,1759204354330,-453.63817819,0.00020144,4]
[388487312,1759204354357,-182.36,0.00020235,3]
[388487313,1759204354382,-547.09,0.00020235,3]
[388487314,1759204354409,-300.0,0.00020244,2]
[388487315,1759204354435,-1200.0,0.00020244,2]
[388487316,1759204359815,-7287.19757072,0.00020245,2]
[388487317,1759204359844,-10000.01,0.00020245,2]
[388487318,1759204359986,-10000.01,0.00020245,2]
[388487319,1759204360108,-10000.01,0.00020245,2]
[388487320,1759204360214,-10000.01,0.00020245,2]
[388487321,1759204360330,-10000.01,0.00020245,2]
[388487322,1759204360448,-10000.01,0.00020245,2]
[388487323,1759204364269,-10000.01,0.00020245,2]
[388487324,1759204364387,-10000.01,0.00020245,2]
[388487325,1759204364516,-10000.01,0.00020245,2]
[388487326,1759204372229,-713.26,0.00020235,3]
[388487327,1759204372268,-8573.49,0.00020245,2]
[388487328,1759204372432,-10000.01,0.00020245,2]
[388487329,1759204372574,-10000.01,0.00020245,2]
[388487330,1759204372753,-10000.01,0.00020245,2]
[388487331,1759204372834,-10000.01,0.00020245,2]
[388487332,1759204372968,-10000.01,0.00020245,2]
[388487333,1759204373089,-10000.01,0.00020245,2]
[388487334,1759204376213,-4695.30464135,0.00020042,2]
[388487335,1759204376249,-609.4007173,0.00020245,2]
[388487336,1759204376321,-10000.01,0.00020245,2]
[388487337,1759204376450,-10000.01,0.00020245,2]
[388487339,1759204381188,-10000.01,0.00020245,2]
[388487340,1759204381323,-10000.01,0.00020245,2]
[388487341,1759204381427,-10000.01,0.00020245,2]
[388487342,1759204381532,-10000.01,0.00020245,2]
[388487343,1759204381681,-10000.01,0.00020245,2]
[388487344,1759204381837,-10000.01,0.00020245,2]
[388487345,1759204381951,-10000.01,0.00020245,2]
[388487346,1759204382080,-10000.01,0.00020245,2]
[388487347,1759204387196,-4241.44,0.00020042,2]
[388487348,1759204387231,-1517.13,0.00020245,2]
[388487349,1759204391300,-10000.01,0.00020245,2]
[388487350,1759204391464,-10000.01,0.00020245,2]
[388487351,1759204391496,-1548.46609142,0.00020245,2]
[388487352,1759204391518,-6903.07781716,0.00020245,2]
[388487353,1759204391592,-651.11626036,0.000203,2]
[388487354,1759204409361,200.0,0.00020245,10]
[388487355,1759204409781,200.0,0.00020245,10]
[388487356,1759204410245,200.0,0.00020245,10]
[388487357,1759204410574,200.0,0.00020245,10]
[388487358,1759204410883,200.0,0.00020245,10]
[388487359,1759204411191,200.0,0.00020245,10]
[388487360,1759204411496,200.0,0.00020245,10]
[388487361,1759204412140,200.0,0.00020245,10]
[388487362,1759204412486,200.0,0.00020245,10]
[388487363,1759204421205,200.0,0.00020245,10]
[388487364,1759204421668,200.0,0.00020245,10]
[388487365,1759204421952,200.0,0.00020245,10]
[388487366,1759204422247,200.0,0.00020245,10]
[388487367,1759204422556,200.0,0.00020245,10]
[388487368,1759204422856,200.0,0.00020245,10]
[388487369,1759204423146,200.0,0.00020245,10]
[388487370,1759204423428,200.0,0.00020245,10]
[388487371,1759204423725,200.0,0.00020245,10]
[388487372,1759204424053,200.0,0.00020245,10]
[388487373,1759204424666,181.593367,0.00020245,10]
[388487374,1759204425282,284.0,0.00019946,2]
[388487375,1759204429472,351.06707241,0.00019846,4]
[388487376,1759204434309,284.0,0.00020263,2]
[388487377,1759204436502,-500.0,0.000204,2]
[388487378,1759204437315,284.0,0.0002015,2]
[388487379,1759204455139,935.24639772,0.00020317,2]
[388487380,1759204457212,7780.76360228,0.00020145,2]
[388487381,1759204457234,10000.01,0.00020145,2]
[388487382,1759204457255,10000.01,0.00020145,2]
[388487383,1759204457276,10000.01,0.00020145,2]
[388487384,1759204457480,10000.01,0.00020145,2]
[388487385,1759204457504,10000.01,0.00020145,2]
[388487386,1759204457527,10000.01,0.00020145,2]
[388487387,1759204457548,10000.01,0.00020145,2]
[388487388,1759204457572,10000.01,0.00020145,2]
[388487389,1759204457593,10000.01,0.00020145,2]
[388487390,1759204472038,-6099.34956059,0.00020145,2]
[388487392,1759204488051,236.309879,0.00019819,2]
[388487393,1759204501469,300.0,0.00020144,2]
[388487394,1759204502058,300.0,0.00020144,2]
[388487395,1759204502182,300.0,0.00020144,2]
[388487396,1759204502296,300.0,0.00020144,2]
[388487397,1759204502365,300.0,0.00020144,2]
[388487398,1759204506804,1200.0,0.00020144,2]
[388487399,1759204507365,337.85853535,0.00020144,2]
[388487400,1759204507392,500.0,0.00020144,2]
[388487401,1759204507420,340.96226424,0.00020144,2]
[388487402,1759204507812,500.0,0.00020144,2]
[388487403,1759204507875,353.09886438,0.00020144,2]
[388487404,1759204508614,500.0,0.00020144,2]
[388487405,1759204508643,500.0,0.00020144,2]
[388487406,1759204508671,500.0,0.00020144,2]
[388487407,1759204508699,500.0,0.00020144,2]
[388487408,1759204508729,500.0,0.00020144,2]
[388487409,1759204508770,500.0,0.00020144,2]
[388487410,1759204508830,500.0,0.00020144,2]
[388487411,1759204508876,500.0,0.00020144,2]
[388487412,1759204508903,500.0,0.00020144,2]
[388487413,1759204509067,314.90406315,0.00020144,2]
[388487414,1759204509103,216.87639388,0.00020144,2]
[388487415,1759204509130,283.12360612,0.00020144,2]
[388487416,1759204509160,307.06957662,0.00020144,2]
[388487417,1759204509192,500.0,0.00020144,2]
[388487418,1759204509228,500.0,0.00020144,2]
[388487419,1759204509255,500.0,0.00020144,2]
[388487420,1759204509287,500.0,0.00020144,2]
[388487421,1759204509314,500.0,0.00020144,2]
[388487422,1759204509340,500.0,0.00020144,2]
[388487423,1759204509367,500.0,0.00020144,2]
[388487424,1759204509415,605.25458294,0.00020144,2]
[388487425,1759204509440,500.0,0.00020144,2]
[388487426,1759204509471,500.0,0.00020144,2]
[388487427,1759204509496,500.0,0.00020144,2]
[388487428,1759204509525,500.0,0.00020144,2]
[388487429,1759204509554,500.0,0.00020144,2]
[388487430,1759204509582,500.0,0.00020144,2]
[388487431,1759204509635,500.0,0.00020144,2]
[388487432,1759204509668,500.0,0.00020144,2]
[388487433,1759204509859,500.0,0.00020144,2]
[388487434,1759204509888,500.0,0.00020144,2]
[388487435,1759204509915,304.56223432,0.00020144,2]
[388487436,1759204509939,195.43776568,0.00020144,2]
[388487437,1759204509964,500.0,0.00020144,2]
[388487438,1759204510005,500.0,0.00020144,2]
[388487439,1759204510033,500.0,0.00020144,2]
[388487440,1759204510059,577.07378704,0.00020144,2]
[388487441,1759204510086,500.0,0.00020144,2]
[388487442,1759204510112,472.13569071,0.00020144,2]
[388487443,1759204510145,500.0,0.00020144,2]
[388487444,1759204510173,500.0,0.00020144,2]
[388487445,1759204510206,500.0,0.00020144,2]
[388487446,1759204510233,500.0,0.00020144,2]
[388487447,1759204510261,500.0,0.00020144,2]
[388487448,1759204510291,500.0,0.00020144,2]
[388487449,1759204510318,500.0,0.00020144,2]
[388487450,1759204510349,500.0,0.00020144,2]
[388487451,1759204510377,500.0,0.00020144,2]
[388487452,1759204510410,500.0,0.00020144,2]
[388487453,1759204510437,500.0,0.00020144,2]
[388487454,1759204510464,324.43906051,0.00020144,2]
[388487455,1759204510496,500.0,0.00020144,2]
[388487456,1759204510537,430.92369606,0.00020144,2]
[388487457,1759204510560,69.07630394,0.00020144,2]
[388487458,1759204510607,500.0,0.00020144,2]
[388487459,1759204510645,500.0,0.00020144,2]
[388487460,1759204510686,500.0,0.00020144,2]
[388487461,1759204510727,500.0,0.00020144,2]
[388487462,1759204510755,500.0,0.00020144,2]
[388487463,1759204510788,500.0,0.00020144,2]
[388487464,1759204510816,500.0,0.00020144,2]
[388487465,1759204510847,500.0,0.00020144,2]
[388487466,1759204510875,500.0,0.00020144,2]
[388487467,1759204510907,500.0,0.00020144,2]
[388487468,1759204510958,500.0,0.00020144,2]
[388487469,1759204511054,500.0,0.00020144,2]
[388487470,1759204511090,500.0,0.00020144,2]
[388487471,1759204511245,490.32287381,0.00020144,2]
[388487472,1759204518971,500.0,0.00020144,2]
[388487473,1759204525078,499.99999999,0.00020144,2]
[388487474,1759204525552,494.37,0.00020135,3]
[388487475,1759204531711,500.0,0.00020144,2]
[388487476,1759204535225,500.0,0.00020144,2]
[388487477,1759204535264,446.24082226,0.00020144,2]
[388487478,1759204535289,53.75917774,0.00020144,2]
[388487479,1759204535319,500.0,0.00020144,2]
[388487480,1759204535363,500.0,0.00020144,2]
[388487481,1759204535403,500.0,0.00020144,2]
[388487482,1759204535433,500.0,0.00020144,2]
[388487483,1759204535475,500.0,0.00020144,2]
[388487484,1759204535506,500.0,0.00020144,2]
[388487485,1759204535546,500.0,0.00020144,2]
[388487486,1759204535602,500.0,0.00020144,2]
[388487487,1759204535635,500.0,0.00020144,2]
[388487488,1759204535687,500.0,0.00020144,2]
[388487489,1759204535737,500.0,0.00020144,2]
[388487490,1759204535805,376.04474856,0.00020144,2]
[388487491,1759204535858,500.0,0.00020144,2]
[388487492,1759204536656,367.32,0.00020135,3]
[388487493,1759204538372,3202.8860737,0.00020145,2]
[388487494,1759204538397,1797.1139263,0.00020145,2]
[388487495,1759204540818,500.0,0.00020144,2]
[388487496,1759204547081,287.3,0.00020135,3]
[388487497,1759204549074,500.0,0.00020144,2]
[388487498,1759204549150,265.58932266,0.00020144,2]
[388487499,1759204549184,500.0,0.00020144,2]
[388487500,1759204551249,220.03254735,0.00020144,2]
[388487501,1759204558217,861.95,0.00020135,3]
[388487502,1759204559205,482.84407623,0.00020144,2]
[388487503,1759204561038,1049.01219229,0.00020145,2]
[388487504,1759204569080,5000.0,0.00020145,2]
[388487505,1759204578835,-8536.17793517,0.00020145,2]
[388487506,1759204578849,-10000.01,0.00020145,2]
[388487507,1759204578864,-10000.01,0.00020145,2]
[388487508,1759204587689,-5000.0,0.00019943,2]
[388487509,1759204592712,0.01,0.00019943,2]
[388487510,1759204592734,4999.99,0.00019943,2]
[388487511,1759204597658,-1137.43262339,0.00020044,2]
[388487517,1759204604748,165.31,0.0002,2]
[388487521,1759204607934,-1607.26118729,0.00020144,2]
[388487522,1759204607962,-184.2837217,0.00020144,2]
[388487523,1759204608347,5000.0,0.00020044,2]
[388487524,1759204616995,5000.0,0.00020144,2]
[388487525,1759204632995,5000.0,0.00020145,2]
[388487527,1759204640056,0.01,0.00020144,2]
[388487528,1759204640077,1199.99,0.00020144,2]
[388487529,1759204641549,5000.0,0.00020145,2]
[388487530,1759204643139,-3634.72,0.00020145,2]
[388487531,1759204643233,-10000.01,0.00020145,2]
[388487532,1759204643343,-10000.01,0.00020145,2]
[388487533,1759204643455,-10000.01,0.00020145,2]
[388487534,1759204643748,-10000.01,0.00020145,2]
[388487535,1759204643852,-10000.01,0.00020145,2]
[388487536,1759204651297,-931.22730725,0.00020045,2]
[388487537,1759204657117,5000.0,0.00020045,2]
[388487538,1759204664997,3137.5553855,0.00020045,2]
[388487539,1759204665021,1862.4446145,0.00020045,2]
[388487540,1759204680474,5000.0,0.00020045,2]
[388487541,1759204684529,199.08438339,0.00019906,2]
[388487542,1759204689574,5000.0,0.00020045,2]
[388487543,1759204691651,283.03,0.00020135,3]
[388487544,1759204694914,-154.8434672,0.00020144,2]
[388487547,1759204697015,-284.86495101,0.00020144,2]
[388487548,1759204701648,-87.59608319,0.00020144,2]
[388487549,1759204701671,-169.63391681,0.00020144,2]
[388487550,1759204702291,849.13,0.00020135,3]
[388487551,1759204704831,-66.86705793,0.00020144,2]
[388487552,1759204704851,-86.41165987,0.00020144,2]
[388487553,1759204704990,3867.85,0.00020144,2]
[388487554,1759204705012,1132.15,0.00020144,2]
[388487555,1759204707988,-213.58834013,0.00020144,2]
[388487556,1759204712842,5000.0,0.00020144,2]
[388487692,1759204728287,5000.0,0.00020145,2]
[388487849,1759204733115,1731.69,0.00020135,3]
[388487850,1759204736726,1586.41282863,0.00020145,2]
[388487852,1759204742414,300.0,0.00020144,2]
[388487853,1759204743775,865.84,0.00020135,3]
[388487854,1759204745035,450.68826249,0.00020145,2]
[388487855,1759204745885,65.37890888,0.00020144,2]
[388487856,1759204745908,434.62109112,0.00020144,2]
[388487857,1759204745938,500.0,0.00020144,2]
[388487858,1759204745977,309.29956766,0.00020144,2]
[388487859,1759204748334,-183948.82890196,0.00020145,2]
[388487860,1759204748360,-1000.0,0.00020145,2]
[388487861,1759204748383,-1000.0,0.00020145,2]
[388487862,1759204748408,-799.42703997,0.00020145,2]
[388487863,1759204748433,-168.0,0.00020348,2]
[388487864,1759204748456,-1355.94134879,0.00020391,2]
[388487865,1759204748481,-159.26129273,0.000204,2]
[388487866,1759204748505,-159.26129272,0.000204,2]
[388487867,1759204748529,-11409.28012383,0.000204,2]
[388487868,1759204752814,5000.0,0.00020145,2]
[388487869,1759204764091,453.63817819,0.00020044,4]
[388487870,1759204776064,3302.45116303,0.00020145,2]
[388487871,1759204776086,1697.54883697,0.00020145,2]
[388487872,1759204800652,5000.0,0.00020145,2]
[388487873,1759204805042,3302.46116303,0.00020045,2]
[388487874,1759204805067,10000.01,0.00020045,2]
[388487875,1759204805091,10000.01,0.00020045,2]
[388487876,1759204805115,10000.01,0.00020045,2]
[388487877,1759204805138,10000.01,0.00020045,2]
[388487878,1759204805160,10000.01,0.00020045,2]
[388487879,1759204805183,10000.01,0.00020045,2]
[388487880,1759204805208,10000.01,0.00020045,2]
[388487881,1759204805230,10000.01,0.00020045,2]
[388487882,1759204805253,10000.01,0.00020045,2]
[388487883,1759204823107,-1200.0,0.00020044,2]
[388487884,1759204824492,5000.0,0.00019844,2]
[388487885,1759204828474,339.83,0.00020035,3]
[388487886,1759204838527,165.55068232,0.00020044,2]
[388487887,1759204838586,500.0,0.00020044,2]
[388487888,1759204838626,495.75091207,0.00020044,2]
[388487889,1759204838661,500.0,0.00020044,2]
[388487890,1759204838770,409.07625886,0.00020044,2]
[388487891,1759204839150,169.91,0.00020035,3]
[388487892,1759204839180,19.89214675,0.00020044,2]
[388487893,1759204839205,480.10785325,0.00020044,2]
[388487894,1759204840150,508.56375412,0.00020044,2]